[Event "African Online-ch U20-Open 2021"]
[Site "Online"]
[Date "2021.02.01"]
[Round "1.8"]
[White "Wael, Mostafa"]
[Black "Mohamed Abderrahim, Taleb Mohamed"]
[Result "0-1"]
[WhiteElo "1492"]
[BlackElo "1799"]
[PlyCount "108"]
[EventDate "2021.02.01"]
[EventType "swiss"]
[EventCountry "NET"]
[TimeControl "1500+10"]
[WhiteClock "0:24:41"]
[BlackClock "0:22:25"]

1. d4 {[%emt 0:00:00]} d5 {[%emt 0:00:11]} 2. c3 {[%emt 0:00:04]} Nf6 {[%emt 0:00:04]} 3. Bf4 {[%emt 0:00:04]} c6 {[%emt 0:00:03]} 4. e3 {[%emt 0:00:01]} Bf5 {[%emt 0:00:07]} 5. h3 {[%emt 0:00:03]} Nbd7 {[%emt 0:00:03]} 6. Nf3 {[%emt 0:00:01]} g6 {[%emt 0:00:05]} 7. Be2 {[%emt 0:00:03]} Bg7 {[%emt 0:00:02]} 8. O-O {[%emt 0:00:04]} O-O {[%emt 0:00:09]} 9. Nbd2 {[%emt 0:00:02]} Qb6 {[%emt 0:00:28]} 10. Qb3 {[%emt 0:00:03]} Qxb3 {[%emt 0:00:52]} 11. axb3 {[%emt 0:00:03]} Ne4 {[%emt 0:00:33]} 12. Nxe4 {[%emt 0:00:07]} Bxe4 {[%emt 0:00:04]} 13. b4 {[%emt 0:00:05]} a6 {[%emt 0:00:39]} 14. Nd2 {[%emt 0:00:35]} Bf5 {[%emt 0:00:07]} 15. Bf3 {[%emt 0:00:08]} e5 {[%emt 0:00:11]} 16. dxe5 {[%emt 0:00:05]} Bxe5 {[%emt 0:00:13]} 17. Bxe5 {[%emt 0:00:02]} Nxe5 {[%emt 0:00:03]} 18. Be2 {[%emt 0:00:09]} Rfe8 {[%emt 0:00:22]} 19. Nf3 {[%emt 0:00:14]} Nxf3+ {[%emt 0:00:05]} 20. Bxf3 {[%emt 0:00:03]} Be4 {[%emt 0:00:13]} 21. Bxe4 {[%emt 0:00:04]} dxe4 {[%emt 0:00:10]} 22. Rfd1 {[%emt 0:00:03]} Rad8 {[%emt 0:00:03]} 23. Kf1 {[%emt 0:00:02]} f5 {[%emt 0:00:04]} 24. Ke2 {[%emt 0:00:02]} Kf7 {[%emt 0:00:04]} 25. Rxd8 {[%emt 0:00:23]} Rxd8 {[%emt 0:00:04]} 26. Rd1 {[%emt 0:00:02]} Rxd1 {[%emt 0:00:33]} 27. Kxd1 {[%emt 0:00:03]} Ke6 {[%emt 0:00:02]} 28. c4 {[%emt 0:00:06]} b5 {[%emt 0:00:21]} 29. b3 {[%emt 0:00:03]} Ke5 {[%emt 0:00:08]} 30. Kd2 {[%emt 0:00:12]} g5 {[%emt 0:00:05]} 31. g3 {[%emt 0:00:08]} h5 {[%emt 0:00:04]} 32. Ke2 {[%emt 0:00:19]} Kd6 {[%emt 0:02:09]} 33. Kd2 {[%emt 0:00:11]} bxc4 {[%emt 0:01:51]} 34. bxc4 {[%emt 0:00:03]} c5 {[%emt 0:00:02]} 35. Kc3 {[%emt 0:00:07]} cxb4+ {[%emt 0:00:02]} 36. Kxb4 {[%emt 0:00:02]} Kc6 {[%emt 0:00:02]} 37. c5 {[%emt 0:03:47]} Kd5 {[%emt 0:00:05]} 38. Ka5 {[%emt 0:00:36]} Kxc5 {[%emt 0:00:04]} 39. Kxa6 {[%emt 0:00:01]} Kc4 {[%emt 0:00:02]} 40. Kb6 {[%emt 0:00:02]} Kd3 {[%emt 0:00:02]} 41. Kc5 {[%emt 0:00:13]} Ke2 {[%emt 0:00:03]} 42. h4 {[%emt 0:00:09]} gxh4 {[%emt 0:00:16]} 43. gxh4 {[%emt 0:00:02]} Kxf2 {[%emt 0:00:02]} 44. Kd4 {[%emt 0:00:06]} Kf3 {[%emt 0:00:04]} 45. Ke5 {[%emt 0:00:02]} Kxe3 {[%emt 0:00:03]} 46. Kxf5 {[%emt 0:00:02]} Kf3 {[%emt 0:00:02]} 47. Kg5 {[%emt 0:00:02]} e3 {[%emt 0:00:01]} 48. Kxh5 {[%emt 0:00:02]} e2 {[%emt 0:00:02]} 49. Kh6 {[%emt 0:00:01]} e1=Q {[%emt 0:00:02]} 50. h5 {[%emt 0:00:02]} Qg3 {[%emt 0:00:21]} 51. Kh7 {[%emt 0:00:15]} Kf4 {[%emt 0:00:03]} 52. h6 {[%emt 0:00:03]} Kf5 {[%emt 0:00:01]} 53. Kh8 {[%emt 0:00:06]} Kf6 {[%emt 0:00:02]} 54. h7 {[%emt 0:00:02]} Qg7# {[%emt 0:00:02]} 0-1

[Event "African Online-ch U20-Open 2021"]
[Site "Online"]
[Date "2021.02.01"]
[Round "1.9"]
[White "Filipe, Marcio"]
[Black "Sparg, Nathan"]
[Result "1-0"]
[WhiteElo "1990"]
[BlackElo "1413"]
[PlyCount "65"]
[EventDate "2021.02.01"]
[EventType "swiss"]
[EventCountry "NET"]
[TimeControl "1500+10"]
[WhiteClock "0:17:38"]
[BlackClock "0:03:07"]

1. e4 {[%emt 0:00:00]} e6 {[%emt 0:00:08]} 2. d4 {[%emt 0:00:10]} d5 {[%emt 0:00:04]} 3. e5 {[%emt 0:00:14]} c5 {[%emt 0:00:07]} 4. c3 {[%emt 0:00:27]} Nc6 {[%emt 0:00:15]} 5. Nf3 {[%emt 0:00:05]} Qb6 {[%emt 0:00:47]} 6. Be2 {[%emt 0:00:11]} cxd4 {[%emt 0:00:18]} 7. cxd4 {[%emt 0:00:08]} Nh6 {[%emt 0:00:42]} 8. Nc3 {[%emt 0:00:30]} Be7 {[%emt 0:01:35]} 9. O-O {[%emt 0:00:09]} Nf5 {[%emt 0:00:09]} 10. Na4 {[%emt 0:00:05]} Qc7 {[%emt 0:00:54]} 11. g4 {[%emt 0:00:09]} Nh4 {[%emt 0:01:09]} 12. Nxh4 {[%emt 0:00:20]} Bxh4 {[%emt 0:00:04]} 13. Be3 {[%emt 0:00:05]} h6 {[%emt 0:01:01]} 14. f4 {[%emt 0:00:17]} Ne7 {[%emt 0:03:08]} 15. Bd3 {[%emt 0:00:40]} Bd7 {[%emt 0:01:39]} 16. Nc5 {[%emt 0:00:51]} b6 {[%emt 0:03:06]} 17. Nxd7 {[%emt 0:00:18]} Qxd7 {[%emt 0:00:02]} 18. Rc1 {[%emt 0:00:13]} O-O {[%emt 0:00:37]} 19. f5 {[%emt 0:00:09]} exf5 {[%emt 0:01:11]} 20. gxf5 {[%emt 0:00:05]} Rac8 {[%emt 0:01:39]} 21. Qh5 {[%emt 0:01:10]} Rxc1 {[%emt 0:02:00]} 22. Bxc1 {[%emt 0:00:09]} g5 {[%emt 0:02:49]} 23. fxg6 {[%emt 0:01:30]} Nxg6 {[%emt 0:00:31]} 24. Bxg6 {[%emt 0:00:08]} fxg6 {[%emt 0:00:07]} 25. Rxf8+ {[%emt 0:00:07]} Kxf8 {[%emt 0:00:13]} 26. Qxh6+ {[%emt 0:00:07]} Kf7 {[%emt 0:00:38]} 27. Qxh4 {[%emt 0:00:07]} Qa4 {[%emt 0:00:30]} 28. b3 {[%emt 0:02:22]} Qb4 {[%emt 0:01:13]} 29. Qf6+ {[%emt 0:00:10]} Kg8 {[%emt 0:00:04]} 30. Qxg6+ {[%emt 0:00:06]} Kh8 {[%emt 0:00:04]} 31. Qh5+ {[%emt 0:01:36]} Kg8 {[%emt 0:00:17]} 32. Qg4+ {[%emt 0:00:05]} Kh8 {[%emt 0:00:12]} 33. Bg5 {[%emt 0:00:09] #r} 1-0

[Event "African Online-ch U20-Open 2021"]
[Site "Online"]
[Date "2021.02.01"]
[Round "1.10"]
[White "Mcligeyo, Robert"]
[Black "Bidi, Abdeljalil"]
[Result "0-1"]
[WhiteElo "1688"]
[BlackElo "1750"]
[PlyCount "150"]
[EventDate "2021.02.01"]
[EventType "swiss"]
[EventCountry "NET"]
[TimeControl "1500+10"]
[WhiteClock "0:14:22"]
[BlackClock "0:25:51"]

1. e4 {[%emt 0:00:00]} e5 {[%emt 0:00:03]} 2. Nf3 {[%emt 0:00:07]} Nc6 {[%emt 0:00:02]} 3. Bb5 {[%emt 0:00:04]} a6 {[%emt 0:00:02]} 4. Ba4 {[%emt 0:00:04]} Nf6 {[%emt 0:00:02]} 5. O-O {[%emt 0:00:06]} b5 {[%emt 0:00:03]} 6. Bb3 {[%emt 0:00:03]} Be7 {[%emt 0:00:02]} 7. Re1 {[%emt 0:00:05]} O-O {[%emt 0:00:05]} 8. a4 {[%emt 0:00:03]} Bb7 {[%emt 0:00:07]} 9. h3 {[%emt 0:00:06]} d6 {[%emt 0:00:05]} 10. c3 {[%emt 0:00:03]} Na5 {[%emt 0:00:38]} 11. Bc2 {[%emt 0:00:56]} c5 {[%emt 0:00:26]} 12. d3 {[%emt 0:00:10]} Re8 {[%emt 0:00:16]} 13. Nbd2 {[%emt 0:00:13]} Bf8 {[%emt 0:00:04]} 14. Nf1 {[%emt 0:00:04]} g6 {[%emt 0:00:03]} 15. Bg5 {[%emt 0:00:28]} h6 {[%emt 0:00:04]} 16. Bh4 {[%emt 0:00:05]} Bg7 {[%emt 0:00:06]} 17. Ne3 {[%emt 0:00:10]} Qc7 {[%emt 0:00:24]} 18. Bxf6 {[%emt 0:05:47]} Bxf6 {[%emt 0:00:06]} 19. Nd5 {[%emt 0:00:04]} Bxd5 {[%emt 0:00:05]} 20. exd5 {[%emt 0:00:03]} Nb7 {[%emt 0:00:13]} 21. Nd2 {[%emt 0:00:22]} Bg7 {[%emt 0:00:21]} 22. Ne4 {[%emt 0:00:43]} f5 {[%emt 0:00:42]} 23. Ng3 {[%emt 0:00:25]} c4 {[%emt 0:00:47]} 24. axb5 {[%emt 0:00:48]} axb5 {[%emt 0:00:06]} 25. dxc4 {[%emt 0:00:02]} bxc4 {[%emt 0:00:21]} 26. Ba4 {[%emt 0:00:09]} Reb8 {[%emt 0:00:09]} 27. Bc6 {[%emt 0:00:04]} Rxa1 {[%emt 0:00:03]} 28. Qxa1 {[%emt 0:00:04]} Nc5 {[%emt 0:00:03]} 29. Qa2 {[%emt 0:01:21]} Nd3 {[%emt 0:00:37]} 30. Re2 {[%emt 0:00:30]} Nc1 {[%emt 0:00:17]} 31. Qxc4 {[%emt 0:00:17]} Nxe2+ {[%emt 0:00:03]} 32. Qxe2 {[%emt 0:00:04]} Qb6 {[%emt 0:00:04]} 33. b4 {[%emt 0:00:03]} e4 {[%emt 0:00:02]} 34. Qd2 {[%emt 0:01:47]} Kh7 {[%emt 0:00:15]} 35. Ne2 {[%emt 0:00:08]} Be5 {[%emt 0:00:25]} 36. Nf4 {[%emt 0:00:14]} Qa7 {[%emt 0:01:12]} 37. b5 {[%emt 0:03:04]} Qa1+ {[%emt 0:00:12]} 38. Kh2 {[%emt 0:00:04]} g5 {[%emt 0:00:05]} 39. g3 {[%emt 0:00:12]} gxf4 {[%emt 0:00:04]} 40. gxf4 {[%emt 0:00:02]} Qxc3 {[%emt 0:00:05]} 41. Qe3 {[%emt 0:00:16]} Qxe3 {[%emt 0:00:07]} 42. fxe3 {[%emt 0:00:02]} Bc3 {[%emt 0:00:04]} 43. Kg3 {[%emt 0:00:18]} Kg6 {[%emt 0:00:02]} 44. h4 {[%emt 0:00:03]} Kf6 {[%emt 0:00:04]} 45. Kf2 {[%emt 0:00:06]} Rg8 {[%emt 0:00:06]} 46. b6 {[%emt 0:00:07]} Ba5 {[%emt 0:00:03]} 47. b7 {[%emt 0:00:03]} Bc7 {[%emt 0:00:02]} 48. h5 {[%emt 0:00:21]} Ke7 {[%emt 0:00:08]} 49. Ba4 {[%emt 0:00:18]} Bb8 {[%emt 0:00:29]} 50. Bc6 {[%emt 0:00:04]} Rg4 {[%emt 0:00:12]} 51. Ba4 {[%emt 0:00:13]} Rh4 {[%emt 0:00:05]} 52. Bd1 {[%emt 0:00:03]} Rh2+ {[%emt 0:00:04]} 53. Kg3 {[%emt 0:00:10]} Rh1 {[%emt 0:00:06]} 54. Be2 {[%emt 0:00:06]} Kd7 {[%emt 0:00:08]} 55. Kg2 {[%emt 0:00:07]} Rb1 {[%emt 0:00:03]} 56. Kg3 {[%emt 0:00:04]} Kc7 {[%emt 0:00:04]} 57. Kf2 {[%emt 0:00:07]} Rb2 {[%emt 0:00:03]} 58. Ke1 {[%emt 0:00:04]} Kxb7 {[%emt 0:00:05]} 59. Bf1 {[%emt 0:00:03]} Ba7 {[%emt 0:00:08]} 60. Bh3 {[%emt 0:00:06]} Bxe3 {[%emt 0:00:06]} 61. Bxf5 {[%emt 0:00:03]} Rb4 {[%emt 0:00:05]} 62. Ke2 {[%emt 0:00:05]} Bxf4 {[%emt 0:00:01]} 63. Bg6 {[%emt 0:00:03]} e3 {[%emt 0:00:02]} 64. Kf3 {[%emt 0:00:04]} Kb6 {[%emt 0:00:02]} 65. Bd3 {[%emt 0:00:08]} Kc5 {[%emt 0:00:02]} 66. Be2 {[%emt 0:00:04]} Kxd5 {[%emt 0:00:04]} 67. Bf1 {[%emt 0:00:04]} Ke5 {[%emt 0:00:03]} 68. Ke2 {[%emt 0:00:06]} d5 {[%emt 0:00:01]} 69. Kd3 {[%emt 0:00:04]} d4 {[%emt 0:00:02]} 70. Be2 {[%emt 0:00:06]} Rb2 {[%emt 0:00:08]} 71. Bf3 {[%emt 0:00:09]} Rd2+ {[%emt 0:00:03]} 72. Kc4 {[%emt 0:00:04]} e2 {[%emt 0:00:01]} 73. Bxe2 {[%emt 0:00:17]} Rxe2 {[%emt 0:00:02]} 74. Kd3 {[%emt 0:00:02]} Rd2+ {[%emt 0:00:03]} 75. Kc4 {[%emt 0:00:04]} Ke4 {[%emt 0:00:02] #R} 0-1

[Event "African Online-ch U20-Open 2021"]
[Site "Online"]
[Date "2021.02.01"]
[Round "1.11"]
[White "Celso, Andre Manjate"]
[Black "Masilo, Ofile"]
[Result "1-0"]
[ECO "B92"]
[WhiteElo "1721"]
[BlackElo "1355"]
[Annotator "NA"]
[PlyCount "53"]
[EventDate "2021.02.01"]
[EventType "swiss"]
[EventCountry "NET"]
[SourceTitle "playchess.com"]
[Source "ChessBase"]
[SourceQuality "1"]
[TimeControl "1500+10"]

1. e4 {[%emt 0:00:00]} c5 {[%emt 0:00:06]} 2. Nf3 {[%emt 0:00:04]} d6 {[%emt 0:00:05]} 3. d4 {[%emt 0:00:03]} cxd4 {[%emt 0:00:05]} 4. Nxd4 {[%emt 0:00:07]} Nf6 {[%emt 0:00:06]} 5. Nc3 {[%emt 0:00:03]} a6 {[%emt 0:00:12]} 6. Be2 {[%emt 0:00:31]} e5 {[%emt 0:00:05]} 7. Nf3 {[%emt 0:00:06]} h6 {[%emt 0:00:27]} 8. O-O {[%emt 0:00:21]} Be6 {[%emt 0:00:06]} 9. h3 {[%emt 0:00:21]} Be7 {[%emt 0:00:07]} 10. Nh2 {[%emt 0:02:50]} d5 {[%emt 0:02:54]} 11. exd5 {[%emt 0:00:05]} Nxd5 {[%emt 0:00:07]} 12. Bd2 {[%emt 0:01:48]} O-O {[%emt 0:00:35]} 13. Bf3 {[%emt 0:00:07]} Nc6 {[%emt 0:02:01]} 14. Re1 {[%emt 0:03:21]} f5 {[%emt 0:04:08]} 15. Nxd5 {[%emt 0:03:27]} Bxd5 {[%emt 0:00:08]} 16. Bxd5+ {[%emt 0:00:39]} Qxd5 {[%emt 0:00:07]} 17. Bc3 {[%emt 0:00:03]} Qc5 {[%emt 0:03:32]} 18. Qd7 {[%emt 0:01:36]} b5 {[%emt 0:01:21]} 19. Qe6+ {[%emt 0:01:07]} Kh8 {[%emt 0:00:41]} 20. Bxe5 {[%emt 0:00:21]} Kh7 {[%emt 0:02:13]} 21. Nf3 {[%emt 0:03:30]} Rae8 {[%emt 0:01:01]} 22. Qb3 {[%emt 0:01:39]} Nxe5 {[%emt 0:02:26]} 23. Rxe5 {[%emt 0:00:48]} Qa7 {[%emt 0:00:17]} 24. Rae1 {[%emt 0:00:08]} Bc5 {[%emt 0:03:16]} 25. Rxe8 {[%emt 0:00:17]} Bxf2+ {[%emt 0:00:52]} 26. Kh1 {[%emt 0:00:04]} Rf6 {[%emt 0:01:29]} 27. R1e7 {[%emt 0:01:39]} 1-0

[Event "African Online-ch U20-Open 2021"]
[Site "Online"]
[Date "2021.02.01"]
[Round "1.12"]
[White "Palmer, Reegan"]
[Black "Ben Abbes, Ayoub"]
[Result "1-0"]
[WhiteElo "1325"]
[BlackElo "1481"]
[PlyCount "34"]
[EventDate "2021.02.01"]
[EventType "swiss"]
[EventCountry "NET"]
[TimeControl "1500+10"]
[WhiteClock "0:20:50"]
[BlackClock "0:16:29"]

1. e4 {[%emt 0:00:00]} e5 {[%emt 0:00:05]} 2. Nf3 {[%emt 0:00:09]} Nc6 {[%emt 0:00:29]} 3. Bb5 {[%emt 0:00:07]} d6 {[%emt 0:00:07]} 4. O-O {[%emt 0:00:06]} Bd7 {[%emt 0:00:03]} 5. d4 {[%emt 0:00:13]} exd4 {[%emt 0:00:10]} 6. Bxc6 {[%emt 0:01:21]} bxc6 {[%emt 0:00:19]} 7. Nxd4 {[%emt 0:00:12]} g6 {[%emt 0:00:35]} 8. Nc3 {[%emt 0:00:45]} Bg7 {[%emt 0:00:09]} 9. Be3 {[%emt 0:00:05]} Ne7 {[%emt 0:00:13]} 10. f4 {[%emt 0:00:04]} a6 {[%emt 0:00:05]} 11. f5 {[%emt 0:01:04]} Be5 {[%emt 0:01:50]} 12. Bg5 {[%emt 0:02:16]} c5 {[%emt 0:04:06]} 13. Nf3 {[%emt 0:00:16]} Bg7 {[%emt 0:02:42]} 14. f6 {[%emt 0:00:08]} Bf8 {[%emt 0:00:21]} 15. fxe7 {[%emt 0:00:07]} Bxe7 {[%emt 0:00:02]} 16. Bxe7 {[%emt 0:00:04]} Qxe7 {[%emt 0:00:02]} 17. Nd5 {[%emt 0:00:03]} Qd8 {[%emt 0:00:03] #r} 1-0

[Event "African Online-ch U20-Open 2021"]
[Site "Online"]
[Date "2021.02.01"]
[Round "1.13"]
[White "Beghriche, Rami Tadjeddine"]
[Black "Karania, Hardiv"]
[Result "1-0"]
[WhiteElo "1783"]
[BlackElo "1317"]
[PlyCount "49"]
[EventDate "2021.02.01"]
[EventType "swiss"]
[EventCountry "NET"]
[TimeControl "1500+10"]
[WhiteClock "0:25:31"]
[BlackClock "0:21:47"]

1. Nf3 {[%emt 0:00:00]} d5 {[%emt 0:00:05]} 2. b3 {[%emt 0:00:09]} c5 {[%emt 0:00:05]} 3. e3 {[%emt 0:00:05]} a6 {[%emt 0:00:06]} 4. Bb2 {[%emt 0:00:08]} f6 {[%emt 0:00:13]} 5. c4 {[%emt 0:00:09]} e6 {[%emt 0:00:20]} 6. cxd5 {[%emt 0:00:06]} exd5 {[%emt 0:00:04]} 7. Nc3 {[%emt 0:00:03]} Be6 {[%emt 0:00:06]} 8. Rc1 {[%emt 0:00:08]} Bd6 {[%emt 0:00:28]} 9. d4 {[%emt 0:00:11]} c4 {[%emt 0:00:31]} 10. bxc4 {[%emt 0:00:08]} dxc4 {[%emt 0:00:04]} 11. d5 {[%emt 0:00:03]} Bf7 {[%emt 0:00:26]} 12. Bxc4 {[%emt 0:00:05]} b5 {[%emt 0:00:04]} 13. Bb3 {[%emt 0:00:11]} Ne7 {[%emt 0:00:06]} 14. O-O {[%emt 0:00:06]} O-O {[%emt 0:00:06]} 15. Nd4 {[%emt 0:00:07]} Qd7 {[%emt 0:00:52]} 16. Ne6 {[%emt 0:00:13]} Re8 {[%emt 0:00:18]} 17. Ne4 {[%emt 0:00:16]} Ng6 {[%emt 0:00:33]} 18. Bxf6 {[%emt 0:00:09]} Bxe6 {[%emt 0:00:18]} 19. dxe6 {[%emt 0:00:09]} Qb7 {[%emt 0:00:24]} 20. Nxd6 {[%emt 0:00:10]} Qb6 {[%emt 0:00:40]} 21. e7+ {[%emt 0:00:17]} Kh8 {[%emt 0:00:47]} 22. Nf7+ {[%emt 0:00:05]} Kg8 {[%emt 0:00:04]} 23. Qh5 {[%emt 0:00:06]} Qxf6 {[%emt 0:00:27]} 24. Ng5+ {[%emt 0:00:31]} Kh8 {[%emt 0:00:06]} 25. Qxh7# {[%emt 0:00:04]} 1-0

[Event "African Online-ch U20-Open 2021"]
[Site "Online"]
[Date "2021.02.01"]
[Round "1.14"]
[White "Belattar, Mohamed Walid"]
[Black "Selogelo, Othata"]
[Result "0-1"]
[ECO "E62"]
[WhiteElo "1272"]
[BlackElo "1707"]
[Annotator "NA"]
[PlyCount "140"]
[EventDate "2021.02.01"]
[EventType "swiss"]
[EventCountry "NET"]
[SourceTitle "playchess.com"]
[Source "ChessBase"]
[SourceQuality "1"]
[TimeControl "1500+10"]

1. d4 {[%emt 0:00:00]} Nf6 {[%emt 0:00:05]} 2. Nf3 {[%emt 0:00:04]} g6 {[%emt 0:00:03]} 3. g3 {[%emt 0:00:03]} Bg7 {[%emt 0:00:04]} 4. Bg2 {[%emt 0:00:04]} O-O {[%emt 0:00:03]} 5. c4 {[%emt 0:00:05]} d6 {[%emt 0:00:03]} 6. O-O {[%emt 0:00:06]} c6 {[%emt 0:00:03]} 7. Nc3 {[%emt 0:00:09]} a6 {[%emt 0:00:02]} 8. a4 {[%emt 0:00:40]} a5 {[%emt 0:00:20]} 9. Bd2 {[%emt 0:01:04]} Qc7 {[%emt 0:00:28]} 10. Re1 {[%emt 0:00:56]} e5 {[%emt 0:00:25]} 11. e3 {[%emt 0:03:24]} h6 {[%emt 0:00:42]} 12. e4 {[%emt 0:04:29]} Bg4 {[%emt 0:01:42]} 13. Be3 {[%emt 0:01:30]} Na6 {[%emt 0:01:35]} 14. Qd2 {[%emt 0:01:35]} Kh7 {[%emt 0:00:33]} 15. d5 {[%emt 0:02:08]} Bd7 {[%emt 0:02:46]} 16. b3 {[%emt 0:05:13]} Ng4 {[%emt 0:01:06]} 17. Rac1 {[%emt 0:02:26]} Nxe3 {[%emt 0:00:42]} 18. Qxe3 {[%emt 0:00:19]} Nc5 {[%emt 0:00:12]} 19. Rb1 {[%emt 0:03:04]} Na6 {[%emt 0:00:36]} 20. Na2 {[%emt 0:00:22]} c5 {[%emt 0:00:07]} 21. Nc3 {[%emt 0:00:09]} f5 {[%emt 0:00:08]} 22. exf5 {[%emt 0:00:13]} gxf5 {[%emt 0:00:06]} 23. Nh4 {[%emt 0:00:17]} Nb4 {[%emt 0:00:17]} 24. Qd2 {[%emt 0:00:25]} Rae8 {[%emt 0:00:59]} 25. Nb5 {[%emt 0:00:08]} Qb8 {[%emt 0:00:20]} 26. Bh3 {[%emt 0:00:10]} Rf6 {[%emt 0:02:10]} 27. f4 {[%emt 0:00:11]} e4 {[%emt 0:00:18]} 28. Qe2 {[%emt 0:00:11]} Nd3 {[%emt 0:00:42]} 29. Rf1 {[%emt 0:00:08]} Ref8 {[%emt 0:00:21]} 30. Qh5 {[%emt 0:00:08]} Be8 {[%emt 0:00:06]} 31. Qe2 {[%emt 0:00:04]} Nb4 {[%emt 0:00:19]} 32. Nc3 {[%emt 0:00:17]} R6f7 {[%emt 0:00:21]} 33. Qh5 {[%emt 0:00:12]} Re7 {[%emt 0:00:56]} 34. Bxf5+ {[%emt 0:00:12]} Rxf5 {[%emt 0:00:30]} 35. Qxf5+ {[%emt 0:00:04]} Kg8 {[%emt 0:00:10]} 36. Nxe4 {[%emt 0:00:08]} Bd7 {[%emt 0:00:32]} 37. Qg6 {[%emt 0:00:08]} Be8 {[%emt 0:00:39]} 38. Nf6+ {[%emt 0:00:06]} Kf8 {[%emt 0:00:19]} 39. Nxe8 {[%emt 0:00:04]} Qxe8 {[%emt 0:00:15]} 40. Qxe8+ {[%emt 0:00:02]} Rxe8 {[%emt 0:00:03]} 41. Rfe1 {[%emt 0:00:04]} Bd4+ {[%emt 0:00:05]} 42. Kg2 {[%emt 0:00:07]} Nc2 {[%emt 0:00:15]} 43. Rxe8+ {[%emt 0:00:04]} Kxe8 {[%emt 0:00:03]} 44. Rb2 {[%emt 0:00:04]} Bxb2 {[%emt 0:00:03]} 45. Kf3 {[%emt 0:00:08]} Nd4+ {[%emt 0:00:05]} 46. Kg4 {[%emt 0:00:04]} Nxb3 {[%emt 0:00:04]} 47. Nf5 {[%emt 0:00:04]} Kd7 {[%emt 0:00:20]} 48. Nxh6 {[%emt 0:00:05]} Nd2 {[%emt 0:00:02]} 49. h4 {[%emt 0:00:04]} Nxc4 {[%emt 0:00:02]} 50. f5 {[%emt 0:00:06]} Ne3+ {[%emt 0:00:03]} 51. Kg5 {[%emt 0:00:03]} Nxd5 {[%emt 0:00:03]} 52. h5 {[%emt 0:00:10]} Bc1+ {[%emt 0:00:15]} 53. Kg6 {[%emt 0:00:04]} Bxh6 {[%emt 0:00:03]} 54. Kxh6 {[%emt 0:00:02]} c4 {[%emt 0:00:02]} 55. Kg7 {[%emt 0:00:12]} c3 {[%emt 0:00:12]} 56. h6 {[%emt 0:00:05]} c2 {[%emt 0:00:03]} 57. h7 {[%emt 0:00:12]} c1=Q {[%emt 0:00:05]} 58. h8=Q {[%emt 0:00:03]} Qg5+ {[%emt 0:00:12]} 59. Kf7 {[%emt 0:00:53]} Qxf5+ {[%emt 0:00:07]} 60. Kg7 {[%emt 0:00:21]} Qe5+ {[%emt 0:00:19]} 61. Kh7 {[%emt 0:00:06]} Qxh8+ {[%emt 0:00:07]} 62. Kxh8 {[%emt 0:00:01]} Ne7 {[%emt 0:00:05]} 63. g4 {[%emt 0:00:02]} d5 {[%emt 0:00:02]} 64. g5 {[%emt 0:00:03]} d4 {[%emt 0:00:03]} 65. Kh7 {[%emt 0:00:04]} d3 {[%emt 0:00:03]} 66. Kh6 {[%emt 0:00:02]} d2 {[%emt 0:00:02]} 67. g6 {[%emt 0:00:02]} d1=Q {[%emt 0:00:07]} 68. g7 {[%emt 0:00:03]} Ke6 {[%emt 0:00:08]} 69. Kh7 {[%emt 0:00:07]} Kf6 {[%emt 0:00:06]} 70. g8=Q {[%emt 0:00:07]} Qh1# {[%emt 0:00:07]} 0-1